bitfinex/quotes_SOLUSD_20260211
["timestamp","ask_amount","ask_price","bid_price","bid_amount"]
[1770830343818,0.50000301,78.967,78.92,13.21900593]
[1770830344014,0.50000301,78.967,78.93,13.21900593]
[1770830344318,0.50000301,78.959,78.92,13.21900593]
[1770830344523,0.50000301,78.959,78.919,31.67772252]
[1770830344700,0.50000301,78.949,78.878,50.71072593]
[1770830344893,13.21900593,78.94,78.9,13.21900593]
[1770830345094,0.50000301,78.939,78.9,13.21900593]
[1770830345606,0.50000301,78.949,78.91,13.21900593]
[1770830345930,0.50000301,78.979,78.94,13.21900593]
[1770830346497,0.50000301,78.969,78.93,13.21900593]
[1770830346814,0.50000301,78.969,78.93,25.88845987]
[1770830348098,0.50000301,78.967,78.922,12.67073819]
[1770830348520,0.50000301,78.967,78.922,44.34758368]
[1770830348734,0.50000301,78.959,78.922,44.34758368]
[1770830348898,0.50000301,78.959,78.922,12.67073819]
[1770830349417,0.50000301,78.969,78.93,13.21900593]
[1770830349595,0.50000301,78.969,78.922,44.34758368]
[1770830350006,0.50000301,78.959,78.922,44.34758368]
[1770830350323,0.50000301,78.969,78.93,13.21900593]
[1770830351118,0.50000301,78.969,78.931,44.08]
[1770830351698,0.50000301,78.969,78.94,13.21900593]
[1770830351915,0.50000301,78.981,78.95,13.21900593]
[1770830352117,0.50000301,78.999,78.97,13.21900593]
[1770830352300,0.50000301,78.999,78.971,12.66287624]
[1770830352708,0.50000301,78.999,78.971,10.16287624]
[1770830354231,0.50000301,78.997,78.961,12.66447993]
[1770830354425,0.50000301,78.989,78.961,12.66447993]
[1770830354606,0.50000301,78.989,78.954,12.66550983]
[1770830355534,12.6601509,78.988,78.954,12.66550983]
[1770830355712,0.50000301,78.987,78.954,12.66550983]
[1770830356932,41.52,78.991,78.96,13.21900593]
[1770830357510,0.50000301,78.995,78.971,12.66287624]
[1770830358333,0.50000301,78.995,78.944,44.12]
[1770830358334,0.50000301,78.994,78.958,12.66496111]
[1770830358536,0.50000301,78.994,78.96,13.21900593]
[1770830359436,12.65342275,79.03,78.98,13.21900593]
[1770830359642,0.50000301,79.039,79.0,13.21900593]
[1770830360934,0.50000301,79.029,78.964,4.61729252]
[1770830361141,0.50000301,79.029,78.98,13.21900593]
[1770830361317,0.50000301,79.029,78.981,44.12]
[1770830361719,0.50000301,79.027,78.99,13.21900593]
[1770830362322,0.50000301,79.027,78.984,44.12]
[1770830362639,0.50000301,79.019,78.984,44.12]
[1770830362838,0.50000301,79.019,78.99,13.21900593]
[1770830363018,0.50000301,79.029,78.99,13.21900593]
[1770830363946,41.54,79.036,79.01,13.21900593]
[1770830364446,41.54,79.036,79.0,13.21900593]
[1770830364742,13.41900593,79.05,79.02,13.21900593]
[1770830364743,0.2,79.05,79.02,13.21900593]
[1770830365054,0.50000301,79.068,79.03,13.21900593]
[1770830365241,0.2,79.08,79.05,13.21900593]
[1770830365456,1e-08,79.08,79.07,13.21900593]
[1770830365742,13.21900593,79.11,79.071,44.26401588]
[1770830365933,0.50000301,79.109,79.071,44.26401588]
[1770830366135,31.59100598,79.137,79.071,44.26401588]
[1770830366136,0.50000301,79.149,79.074,4.61729252]
[1770830366332,0.50000301,79.149,79.1,13.21900593]
[1770830366528,0.50000301,79.149,79.071,196.02635604]
[1770830366529,0.50000301,79.129,79.08,13.21900593]
[1770830366729,6.56064055,79.169,79.084,44.14]
[1770830366730,0.50000301,79.119,79.084,44.14]
[1770830366946,13.21900593,79.14,79.09,13.21900593]
[1770830367130,0.50000301,79.147,79.1,13.21900593]
[1770830367335,0.50000301,79.139,79.1,13.21900593]
[1770830367649,0.50000301,79.139,79.097,44.12]
[1770830368239,0.50000301,79.139,79.1,13.21900593]
[1770830368442,0.50000301,79.129,79.098,12.64254469]
[1770830370431,0.50000301,79.129,79.09,12.64382349]
[1770830370645,0.50000301,79.127,79.09,12.64382349]
[1770830370852,12.63775149,79.128,79.081,12.64526245]
[1770830370853,0.50000301,79.119,79.081,12.64526245]
[1770830371751,0.50000301,79.119,79.082,44.12]
[1770830372045,13.21900593,79.14,79.1,13.21900593]
[1770830372234,12.63644933,79.137,79.1,13.21900593]
[1770830372431,13.21900593,79.13,79.09,13.21900593]
[1770830372834,0.50000301,79.119,79.083,44.25729928]
[1770830373837,0.50000301,79.109,79.083,44.25729928]
[1770830374446,0.50000301,79.109,79.083,31.61235663]
[1770830374653,0.50000301,79.109,79.076,12.64606201]
[1770830375137,0.50000301,79.099,79.061,88.40961459]
[1770830375358,0.50000301,79.09,79.061,88.40961459]
[1770830375559,13.71900894,79.09,79.061,88.40961459]
[1770830376557,0.50000301,79.089,79.061,56.78846131]
[1770830377157,0.50000301,79.089,79.061,88.40961459]
[1770830377344,0.50000301,79.089,79.061,56.78846131]
[1770830377652,0.50000301,79.089,79.061,12.64846131]
[1770830378553,0.50000301,79.089,79.056,44.27241448]
[1770830378748,13.21900593,79.1,79.06,13.21900593]
[1770830378953,13.71900894,79.1,79.056,44.27241448]
[1770830379251,72.92012768,79.114,79.056,44.27241448]
[1770830379252,0.50000301,79.089,79.056,44.27241448]
[1770830379854,0.50000301,79.079,79.055,44.2]
[1770830380078,13.21900593,79.07,79.055,44.2]
[1770830380240,13.21900593,79.07,79.05,12.65007318]
[1770830380447,0.50000301,79.069,79.034,31.63173041]
[1770830380647,0.50000301,79.069,79.03,44.22]
[1770830380836,0.50000301,79.069,79.03,57.43900593]
[1770830381238,12.64614613,79.076,79.03,57.43900593]
[1770830381436,13.21900593,79.07,79.03,57.43900593]
[1770830381737,0.50000301,79.117,79.06,13.21900593]
[1770830381937,0.50000301,79.129,79.09,13.21900593]
[1770830382166,0.50000301,79.129,79.091,38.3]
[1770830382352,0.50000301,79.139,79.091,38.3]
[1770830382660,0.50000301,79.137,79.092,44.25226317]
[1770830382958,13.66995552,79.13,79.092,44.25226317]
[1770830383140,0.50000301,79.129,79.092,44.25226317]
[1770830384062,0.50000301,79.119,79.092,44.25226317]
[1770830384242,0.50000301,79.119,79.092,12.64350376]
[1770830385263,13.66995552,79.14,79.092,12.64350376]
[1770830385451,0.50000301,79.148,79.11,13.16995251]
[1770830385649,0.50000301,79.148,79.111,44.26]
[1770830386360,0.50000301,79.148,79.112,44.24]
[1770830386553,0.50000301,79.139,79.1,13.16995251]
[1770830386754,13.16995251,79.14,79.1,13.16995251]
[1770830386755,0.50000301,79.137,79.101,44.24722821]
[1770830386942,0.50000301,79.137,79.101,88.48722821]
[1770830387145,0.50000301,79.147,79.11,13.16995251]
[1770830387342,0.1,79.15,79.13,13.16995251]
[1770830387663,0.1,79.15,79.131,44.24]
[1770830387960,0.1,79.15,79.14,13.16995251]
[1770830388172,0.50000301,79.182,79.15,13.16995251]
[1770830388367,0.50000301,79.182,79.151,44.26]
[1770830388548,0.50000301,79.182,79.152,44.26]
[1770830388744,0.50000301,79.182,79.153,44.21815976]
[1770830389150,0.50000301,79.199,79.16,13.16995251]
[1770830389643,0.50000301,79.229,79.161,44.26]
[1770830389847,0.50000301,79.219,79.18,13.16995251]
[1770830390050,0.50000301,79.229,79.19,13.16995251]
[1770830390268,4.61729252,79.246,79.153,208.45703888]
[1770830390269,13.16995251,79.22,79.18,0.45868258]
[1770830390449,13.16995251,79.21,79.18,0.45868258]
[1770830390961,12.62339962,79.218,79.181,12.62929238]
[1770830391160,13.16995251,79.2,79.168,12.63136254]
[1770830391362,13.16995251,79.2,79.168,56.89136254]
[1770830391557,13.16995251,79.2,79.168,12.63136254]
[1770830391966,6.66004857,79.23,79.171,0.4881499]
[1770830391967,13.16995251,79.22,79.171,0.4881499]
[1770830392173,0.45178907,79.199,79.168,12.63136254]
[1770830392362,0.45178907,79.199,79.163,56.89200878]
[1770830392952,0.45178907,79.197,79.163,56.89200878]
[1770830393153,0.45178907,79.197,79.163,12.63200878]
[1770830393369,13.16995251,79.19,79.163,12.63200878]
[1770830393575,13.16995251,79.21,79.163,44.21241882]
[1770830393753,0.45178907,79.199,79.164,0.4881499]
[1770830393952,0.45178907,79.199,79.163,44.21241882]
[1770830394253,0.45178907,79.199,79.164,44.28]
[1770830394667,0.45178907,79.199,79.165,12.63184488]
[1770830394873,13.16995251,79.18,79.154,12.63360032]
[1770830395057,0.45178907,79.179,79.154,12.63360032]
[1770830395452,13.16995251,79.17,79.144,12.6351966]
[1770830395669,44.19303516,79.198,79.124,0.4881499]
[1770830395670,13.62174158,79.16,79.124,0.4881499]
[1770830395979,13.62174158,79.16,79.13,44.28]
[1770830396654,0.45178907,79.169,79.131,12.63727237]
[1770830397383,0.45178907,79.169,79.131,13.12542227]
[1770830397573,0.45178907,79.169,79.131,44.71860319]
[1770830397765,44.19917409,79.187,79.131,12.63727237]
[1770830397766,0.45178907,79.159,79.131,12.63727237]
[1770830398855,13.16995251,79.17,79.132,0.4881499]
[1770830399058,25.80109261,79.17,79.132,0.4881499]
[1770830399382,0.45178907,79.174,79.132,0.4881499]
[1770830399554,0.45178907,79.183,79.141,0.4881499]
[1770830400676,0.45178907,79.183,79.14,13.16995251]
[1770830400677,0.1,79.23,79.171,0.4881499]
[1770830400856,0.45178907,79.25,79.211,0.4881499]
[1770830401059,0.45178907,79.25,79.21,13.16995251]
[1770830401060,1e-08,79.243,79.23,13.16995251]
[1770830401258,13.26995251,79.29,79.232,0.4881499]
[1770830401487,13.26995251,79.29,79.241,0.4881499]
[1770830401785,13.16995251,79.26,79.221,0.4881499]
[1770830401957,13.16995251,79.26,79.223,0.4881499]
[1770830402156,13.16995251,79.26,79.222,44.32]
[1770830402379,13.16995251,79.26,79.223,0.4881499]
[1770830402559,13.16995251,79.28,79.241,0.4881499]
[1770830402760,0.1,79.29,79.241,0.4881499]
[1770830402959,0.1,79.29,79.24,13.16995251]
[1770830402960,0.1,79.29,79.262,12.61638616]
[1770830403156,13.26995251,79.29,79.261,44.3]
[1770830403364,0.1,79.29,79.262,0.4881499]
[1770830403971,0.45178907,79.289,79.261,12.61649926]
[1770830404172,0.1,79.29,79.261,13.10464916]
[1770830404479,13.26995251,79.29,79.261,13.10464916]
[1770830404683,13.16995251,79.28,79.255,12.6174023]
[1770830404980,13.62174158,79.28,79.25,12.61829652]
[1770830405180,13.16995251,79.27,79.238,0.4881499]
[1770830405380,13.16995251,79.27,79.241,44.32]
[1770830405556,0.45178907,79.278,79.241,44.32]
[1770830405758,0.45178907,79.278,79.241,44.8081499]
[1770830406380,12.61368079,79.279,79.22,0.4881499]
[1770830406381,0.45178907,79.259,79.22,0.4881499]
[1770830406579,0.45178907,79.249,79.221,12.62291564]
[1770830406880,0.45178907,79.288,79.24,13.16995251]
[1770830407064,12.61033991,79.301,79.261,0.4881499]
[1770830407264,0.45178907,79.305,79.271,0.4881499]
[1770830407676,13.16995251,79.3,79.271,0.4881499]
[1770830408383,0.45178907,79.305,79.271,0.4881499]
[1770830408682,13.06134169,79.305,79.271,0.4881499]
[1770830409081,0.45178907,79.289,79.262,44.34]
[1770830409385,0.1,79.29,79.263,13.10437689]
[1770830409574,0.1,79.29,79.264,0.4881499]
[1770830409781,0.1,79.29,79.27,13.16995251]
[1770830409959,0.1,79.32,79.281,0.4881499]
[1770830410267,13.16995251,79.31,79.281,0.4881499]
[1770830410661,13.16995251,79.31,79.277,44.32]
[1770830410662,0.45178907,79.309,79.277,44.32]
[1770830410858,0.45178907,79.309,79.277,44.8081499]
[1770830411193,13.26995251,79.32,79.277,44.8081499]
[1770830411194,0.1,79.32,79.29,0.4881499]
[1770830411688,12.6073198,79.319,79.29,0.4881499]
[1770830411874,13.26995251,79.32,79.29,0.4881499]
[1770830412571,0.45178907,79.318,79.282,44.63436215]
[1770830412770,0.45178907,79.318,79.282,13.1013534]
[1770830413175,0.45178907,79.318,79.282,12.6132035]
[1770830413386,0.45178907,79.318,79.283,0.4881499]
[1770830413592,0.45178907,79.309,79.28,42.84090865]
[1770830413889,0.45178907,79.3,79.28,42.84090865]
[1770830414076,0.45178907,79.3,79.265,0.4881499]
[1770830414266,0.45178907,79.299,79.265,0.4881499]
[1770830415186,13.16995251,79.29,79.266,12.6157495]
[1770830415388,0.45178907,79.289,79.256,12.61722109]
[1770830415585,0.45178907,79.279,79.245,44.34]
[1770830415885,0.45178907,79.269,79.243,12.61941117]
[1770830416088,0.45178907,79.281,79.244,0.4881499]
[1770830416277,44.13730484,79.298,79.25,0.4881499]
[1770830416278,0.45178907,79.289,79.25,0.4881499]
[1770830416478,0.45178907,79.279,79.25,0.4881499]
[1770830416792,0.45178907,79.279,79.243,12.61941117]
[1770830416973,0.45178907,79.279,79.243,13.10756107]
[1770830417386,12.6138399,79.278,79.244,0.4881499]
[1770830417890,0.45178907,79.269,79.243,12.61941117]
[1770830418193,0.45178907,79.277,79.243,13.10756107]
[1770830418403,0.45178907,79.297,79.261,0.4881499]
[1770830418572,13.16995251,79.29,79.251,0.4881499]
[1770830418772,0.45178907,79.289,79.251,0.4881499]
[1770830419194,0.45178907,79.289,79.25,13.16995251]
[1770830419403,0.45178907,79.289,79.242,31.54892607]
[1770830419404,13.16995251,79.26,79.221,0.4881499]
[1770830419695,13.16995251,79.26,79.223,0.4881499]
[1770830420592,0.49093473,79.289,79.251,0.47495345]
[1770830420783,0.49093473,79.299,79.252,0.47495345]
[1770830420980,13.10143423,79.299,79.261,0.47495345]
[1770830421383,13.10143423,79.299,79.263,0.47495345]
[1770830421791,13.16995251,79.29,79.263,0.47495345]
[1770830422178,0.49093473,79.289,79.262,12.61638616]
[1770830422499,0.49093473,79.289,79.249,31.54592346]
[1770830422500,0.1,79.32,79.284,0.47495345]
[1770830422704,0.1,79.32,79.3,13.16995251]
[1770830422882,0.1,79.32,79.291,0.47495345]
[1770830423599,0.1,79.32,79.293,0.47495345]
[1770830424093,13.26995251,79.32,79.293,0.47495345]
[1770830424295,13.16995251,79.3,79.272,0.47495345]
[1770830424492,0.1,79.32,79.291,0.47495345]
[1770830424700,13.26995251,79.32,79.291,0.47495345]
[1770830424988,13.26995251,79.32,79.272,12.61479463]
[1770830424989,13.16995251,79.31,79.273,0.47495345]
[1770830425188,13.16995251,79.3,79.273,0.47495345]
[1770830425399,13.16995251,79.31,79.273,0.47495345]
[1770830425580,0.49093473,79.313,79.275,0.47495345]
[1770830425892,0.1,79.32,79.301,0.47495345]
[1770830426293,0.49093473,79.318,79.281,0.47495345]
[1770830427096,12.6073198,79.319,79.22,126.2307498]
[1770830427097,13.16995251,79.29,79.22,126.2307498]
[1770830427292,0.49245975,79.289,79.25,13.16995251]
[1770830427777,13.66241226,79.28,79.245,12.61905856]
[1770830427979,0.49245975,79.259,79.21,13.16995251]
[1770830428386,0.49245975,79.259,79.22,13.16995251]
[1770830428798,0.49245975,79.259,79.21,13.16995251]
[1770830428996,13.16995251,79.26,79.22,13.16995251]
[1770830428997,0.49245975,79.25,79.22,13.16995251]
[1770830429503,0.49245975,79.25,79.218,0.49509647]
[1770830429504,0.49245975,79.287,79.221,0.49509647]
[1770830429802,0.49245975,79.287,79.169,5.36086188]
[1770830429803,32.01910607,79.298,79.26,13.16995251]
[1770830429978,0.49245975,79.297,79.251,0.49509647]
[1770830430182,13.66241226,79.29,79.251,0.49509647]
[1770830430401,0.49245975,79.29,79.26,13.16995251]
[1770830430703,0.49245975,79.279,79.242,44.44]
[1770830430879,0.49245975,79.289,79.251,0.49509647]
[1770830431079,44.13730484,79.298,79.251,0.49509647]
[1770830431284,13.10311827,79.298,79.261,0.49509647]
[1770830431601,0.49245975,79.297,79.262,12.61638616]
[1770830432100,0.49245975,79.297,79.262,13.11148263]
[1770830432298,0.49245975,79.297,79.263,0.49509647]
[1770830432989,0.49245975,79.289,79.257,12.61717618]
[1770830433688,12.6073198,79.319,79.281,0.49509647]
[1770830434010,12.6073198,79.319,79.29,13.16995251]
[1770830434502,0.1,79.32,79.291,0.49509647]
[1770830435886,13.76241226,79.32,79.291,0.49509647]
[1770830436193,0.49245975,79.319,79.282,0.49509647]
[1770830436383,0.49245975,79.309,79.273,44.42]
[1770830436990,0.49245975,79.299,79.261,0.49509647]
[1770830437293,0.49245975,79.289,79.254,12.61765967]
[1770830437496,0.49245975,79.299,79.255,0.49509647]
[1770830437695,13.16995251,79.29,79.255,0.49509647]
[1770830438096,13.10311827,79.298,79.261,0.49509647]
[1770830438402,44.62976459,79.298,79.261,0.49509647]
[1770830438608,0.49245975,79.297,79.261,0.49509647]
[1770830439410,0.49245975,79.297,79.256,12.61734127]
[1770830439411,13.16995251,79.29,79.257,0.49509647]
[1770830439709,0.49245975,79.289,79.257,0.49509647]
[1770830440127,13.16995251,79.29,79.257,0.49509647]
[1770830440406,13.66241226,79.29,79.257,0.49509647]
[1770830441411,13.66241226,79.29,79.259,0.49509647]
[1770830441708,12.61208994,79.289,79.259,0.49509647]
[1770830441904,13.16995251,79.28,79.254,13.11272083]
[1770830442120,0.49245975,79.279,79.249,44.38]
[1770830442492,0.49245975,79.269,79.237,12.62029676]
[1770830442810,12.61133409,79.294,79.261,0.49509647]
[1770830443188,40.52,79.315,79.237,12.62029676]
[1770830443189,12.60922743,79.307,79.271,0.49509647]
[1770830443384,13.1134118,79.31,79.273,0.49509647]
[1770830443584,13.1134118,79.29,79.253,0.49509647]
[1770830443788,0.49245975,79.299,79.26,13.1134118]
[1770830444014,0.49245975,79.299,79.261,0.49509647]
[1770830445218,0.49245975,79.279,79.25,12.61829447]
[1770830445407,0.49245975,79.279,79.251,44.4]
[1770830445713,0.49245975,79.277,79.251,44.4]
[1770830445920,12.6138399,79.278,79.224,0.49509647]
[1770830445921,0.49245975,79.269,79.224,0.49509647]
[1770830446092,13.1134118,79.26,79.226,0.49509647]
[1770830446292,13.1134118,79.24,79.208,12.62489949]
[1770830446695,13.1134118,79.24,79.209,0.49509647]
[1770830447316,0.49245975,79.256,79.209,0.49509647]
[1770830447503,13.1134118,79.26,79.211,0.49509647]
[1770830447909,13.1134118,79.26,79.199,44.42]
[1770830447910,12.61415813,79.276,79.231,0.49509647]
[1770830448703,13.1134118,79.27,79.231,0.49509647]
[1770830449214,12.61415813,79.276,79.231,0.49509647]
[1770830449408,13.1134118,79.27,79.231,0.49509647]
[1770830449615,13.1134118,79.26,79.231,0.49509647]
[1770830449915,13.1134118,79.25,79.226,44.44]
[1770830450121,44.15400917,79.268,79.227,0.49509647]
[1770830450122,13.1134118,79.26,79.227,0.49509647]
[1770830450620,40.44,79.277,79.231,0.47682664]
[1770830450621,13.1134118,79.27,79.231,0.47682664]
[1770830451298,13.1134118,79.27,79.233,0.47682664]
[1770830451622,25.72860254,79.27,79.233,0.47682664]
[1770830451818,12.61452473,79.274,79.233,0.47682664]
[1770830452122,12.61368079,79.279,79.235,0.47682664]
[1770830452619,13.1134118,79.27,79.235,0.47682664]
[1770830454104,13.1134118,79.27,79.236,12.62052602]
[1770830454310,12.61240808,79.287,79.237,0.47682664]
[1770830454509,31.52653207,79.299,79.251,0.47682664]
[1770830454510,31.98661014,79.299,79.251,0.47682664]
[1770830454722,12.60968616,79.305,79.261,0.47682664]
[1770830454908,13.1134118,79.3,79.261,0.47682664]
[1770830456221,13.1134118,79.29,79.262,44.46]
[1770830456518,0.46007807,79.289,79.26,12.61668525]
[1770830457197,13.1134118,79.29,79.26,13.09351189]
[1770830457399,13.1134118,79.3,79.261,0.47682664]
[1770830458005,13.57348987,79.3,79.261,0.47682664]
[1770830458199,12.61208994,79.289,79.261,0.47682664]
[1770830458627,12.61208994,79.289,79.262,12.61638616]
[1770830458825,13.1134118,79.28,79.262,13.0932128]
[1770830459817,13.1134118,79.29,79.262,13.0932128]
[1770830460126,13.1134118,79.27,79.25,44.5]
[1770830460450,13.1134118,79.29,79.252,0.47682664]
[1770830460725,12.61134257,79.294,79.252,0.36776796]
[1770830460937,13.1134118,79.29,79.252,0.36776796]
[1770830461112,0.46007807,79.303,79.261,0.36776796]
[1770830461310,0.46007807,79.315,79.271,0.36776796]
[1770830461510,13.1134118,79.3,79.261,0.36776796]
[1770830461824,13.1134118,79.3,79.263,0.36776795]
[1770830462029,13.1134118,79.31,79.271,0.36776795]
[1770830462235,13.1134118,79.31,79.273,0.36776795]
[1770830462829,13.1134118,79.3,79.274,44.52]
[1770830463128,0.46007807,79.309,79.274,44.52]
[1770830463508,0.46007807,79.289,79.262,12.61638616]
[1770830463704,13.1134118,79.3,79.261,0.36776792]
[1770830463904,13.07065579,79.299,79.262,57.13638616]
[1770830464114,13.1134118,79.28,79.243,0.36776792]
[1770830464621,13.1134118,79.27,79.244,44.54]
[1770830465605,13.1134118,79.27,79.182,88.57645782]
[1770830465606,0.46007807,79.249,79.21,12.6246686]
[1770830465805,13.1134118,79.24,79.211,44.56]
[1770830466028,13.1134118,79.24,79.212,12.62434984]
[1770830466533,25.73019657,79.26,79.213,0.3677679]
[1770830466726,13.1134118,79.25,79.213,0.3677679]
[1770830466918,13.1134118,79.25,79.212,44.18522445]
[1770830466919,53.99348987,79.27,79.221,0.36776789]
[1770830467127,13.57348987,79.27,79.221,0.36776789]
[1770830467430,13.1134118,79.27,79.23,13.1134118]
[1770830467732,13.1134118,79.27,79.231,0.36776789]
[1770830467912,13.07380763,79.279,79.233,0.36776788]
[1770830468230,13.07380763,79.279,79.232,44.17407107]
[1770830468231,0.46007807,79.278,79.235,0.36776788]
[1770830468445,40.44,79.29,79.234,44.58]
[1770830468446,13.1134118,79.29,79.251,0.36776788]
[1770830468725,13.1134118,79.29,79.232,94.65872373]
[1770830468726,13.1134118,79.3,79.261,0.36776787]
[1770830468905,12.61027852,79.301,79.263,0.36776787]
[1770830469627,13.1134118,79.3,79.263,0.36776787]
[1770830470017,13.1134118,79.29,79.264,12.61606782]
[1770830470217,0.46007807,79.289,79.264,12.61606782]
[1770830470413,0.46007807,79.299,79.264,44.15623737]
[1770830470728,0.46007807,79.299,79.264,44.52400521]
[1770830470928,0.46007807,79.299,79.264,44.15623737]
[1770830471317,0.46007807,79.31,79.271,0.36776784]
[1770830471513,13.67348987,79.32,79.281,0.36776784]
[1770830471729,0.1,79.32,79.283,0.36776784]
[1770830471906,0.1,79.32,79.293,0.36776783]
[1770830472112,0.1,79.32,79.295,0.36776783]
[1770830472526,13.2134118,79.34,79.301,0.36776783]
[1770830473029,13.2134118,79.34,79.294,44.58]
[1770830473030,0.1,79.34,79.311,0.26776782]
[1770830473214,13.67348987,79.34,79.3,13.1134118]
[1770830473407,0.46007807,79.339,79.302,0.26776782]
[1770830474027,0.1,79.34,79.304,0.26776781]
[1770830474230,0.1,79.34,79.31,13.1134118]
[1770830474430,0.1,79.34,79.304,0.26776781]
[1770830474816,0.1,79.34,79.305,44.62]
[1770830475023,0.1,79.34,79.31,13.1134118]
[1770830475212,0.1,79.34,79.305,44.62]
[1770830475419,0.1,79.34,79.305,44.8877678]
[1770830475618,0.46007807,79.339,79.305,44.62]
[1770830475935,13.2134118,79.34,79.306,0.26776779]
[1770830476523,0.1,79.34,79.308,0.26776779]
[1770830476836,0.1,79.34,79.311,0.26776779]
[1770830477332,0.689,79.348,79.32,13.38117958]
[1770830477526,1e-08,79.348,79.331,0.16776778]
[1770830477727,1.29498879,79.436,79.342,0.06776777]
[1770830477728,0.46611655,79.403,79.342,0.06776777]
[1770830477919,0.46611655,79.403,79.363,0.06776777]
[1770830478114,0.46611655,79.403,79.364,44.66]
[1770830478326,0.46611655,79.403,79.365,44.64]
[1770830478523,0.46611655,79.403,79.37,13.1134118]
[1770830478730,13.1134118,79.4,79.367,0.06776777]
[1770830478926,0.46611655,79.403,79.368,44.66]
[1770830479124,0.46611655,79.428,79.39,13.1134118]
[1770830479325,1.29498879,79.436,79.392,0.06776776]
[1770830479538,1.29498879,79.436,79.4,13.1134118]
[1770830479734,1.29498879,79.436,79.401,0.06776775]
[1770830479941,13.1134118,79.44,79.4,13.18117955]
[1770830480237,13.1134118,79.42,79.401,44.68]
[1770830480422,0.47986451,79.447,79.401,44.68]
[1770830480737,0.47986451,79.429,79.401,57.27427264]
[1770830480918,0.47986451,79.439,79.401,57.27427264]
[1770830481226,17.64,79.465,79.401,57.27427264]
[1770830481227,0.47986451,79.449,79.41,13.1134118]
[1770830481618,0.47986451,79.449,79.401,88.76002218]
[1770830481820,0.1,79.45,79.421,0.06776772]
[1770830482016,0.47986451,79.448,79.422,44.72]
[1770830482220,13.1134118,79.44,79.421,44.7]
[1770830482427,13.1134118,79.43,79.421,43.14356824]
[1770830482640,0.47986451,79.429,79.371,0.06776772]
[1770830482834,0.47986451,79.428,79.381,0.06776771]
[1770830483347,0.47986451,79.428,79.39,13.1134118]
[1770830484345,0.47986451,79.428,79.391,44.68]
[1770830484531,13.1134118,79.42,79.392,12.59572752]
[1770830484851,0.47986451,79.437,79.4,13.1134118]
[1770830485025,0.47986451,79.449,79.411,0.06776769]
[1770830485223,0.1,79.45,79.42,13.1134118]
[1770830485438,0.1,79.45,79.421,0.06776769]
[1770830485823,0.1,79.45,79.412,44.68]
[1770830485824,0.47986451,79.449,79.412,44.68]
[1770830486029,0.47986451,79.449,79.413,0.06776768]
[1770830486438,0.47986451,79.439,79.4,13.1134118]
[1770830486635,0.47986451,79.439,79.401,88.76004935]
[1770830487759,13.57952835,79.43,79.401,57.27429981]
[1770830488438,0.1,79.45,79.402,0.49223894]
[1770830488643,13.2134118,79.45,79.413,0.49223894]
[1770830488827,13.2134118,79.45,79.412,44.07394348]
[1770830489021,13.1134118,79.44,79.412,12.59255528]
[1770830489343,13.2134118,79.45,79.413,0.49223894]
[1770830489524,13.2134118,79.45,79.414,44.7]
[1770830490134,0.1,79.45,79.413,0.49223894]
[1770830490330,13.2134118,79.45,79.414,44.7]
[1770830490538,0.46284997,79.449,79.415,44.07227853]
[1770830490934,0.46284997,79.447,79.415,12.59207958]
[1770830491438,12.58684925,79.448,79.414,44.7]
[1770830491439,0.46284997,79.439,79.414,44.7]
[1770830491626,0.46284997,79.429,79.371,62.99530055]
[1770830491832,13.1134118,79.42,79.381,0.49223894]
[1770830492436,0.46284997,79.419,79.381,0.49223894]
[1770830492751,0.46284997,79.419,79.375,0.49223894]
[1770830492941,0.46284997,79.419,79.377,0.49223894]
[1770830493546,13.1134118,79.4,79.374,44.0950437]
[1770830493952,13.1134118,79.4,79.375,44.74]
[1770830494447,12.59160391,79.418,79.36,31.50192738]
[1770830494448,0.46284997,79.389,79.36,31.50192738]
[1770830494752,40.04,79.427,79.336,12.60461833]
[1770830494753,13.1134118,79.37,79.336,12.60461833]
[1770830494950,13.1134118,79.37,79.34,31.50957146]
[1770830495762,0.46284997,79.38,79.341,0.49223894]
[1770830495962,50.34692663,79.449,79.341,0.49223894]
[1770830495963,13.1134118,79.42,79.371,0.49223894]
[1770830496252,13.1134118,79.46,79.411,0.49223894]
[1770830496545,13.1134118,79.46,79.41,13.1134118]
[1770830496546,13.1134118,79.44,79.414,12.59223814]
[1770830496733,13.2134118,79.45,79.414,12.59223814]
[1770830496930,13.2134118,79.45,79.415,0.49223894]
[1770830497129,12.58669083,79.449,79.415,0.49223894]
[1770830497355,13.1134118,79.43,79.413,44.78]
[1770830497532,13.1134118,79.43,79.404,12.59382398]
[1770830497729,13.1134118,79.42,79.404,44.78]
[1770830498053,0.46284997,79.409,79.383,44.8]
[1770830498625,13.1134118,79.42,79.385,13.08907713]
[1770830498836,13.1134118,79.41,79.386,44.8]
[1770830499549,0.46284997,79.399,79.355,44.8]
[1770830499855,13.57626177,79.37,79.341,12.603824]